bitfinex/quotes_ETHUSD_20251107
["timestamp","ask_amount","ask_price","bid_price","bid_amount"]
[1762559236651,1e-08,3440.2,3440.1,2.90689224]
[1762559239467,0.47930001,3440.2,3440.1,2.90689224]
[1762559242571,0.97050001,3440.2,3440.1,2.90689224]
[1762559243440,0.47930001,3440.2,3440.1,2.90689224]
[1762559243972,0.97050001,3440.2,3440.1,2.90689224]
[1762559245194,1e-08,3440.2,3440.1,3.39176116]
[1762559245475,1e-08,3440.3,3440.2,8.21417191]
[1762559245776,1e-08,3440.3,3440.2,9.3389325]
[1762559246370,1e-08,3440.3,3440.2,4.7788725]
[1762559246542,1e-08,3440.3,3440.2,14.2635975]
[1762559246750,1e-08,3440.3,3440.2,15.120284]
[1762559248075,1e-08,3440.3,3440.2,14.64977983]
[1762559248861,1e-08,3440.3,3440.2,9.19113983]
[1762559249056,1e-08,3440.3,3440.2,8.73563983]
[1762559250148,1e-08,3440.3,3440.2,4.21929424]
[1762559254079,1e-08,3440.3,3440.2,2.90680774]
[1762559254080,0.93210001,3440.3,3440.2,2.90680774]
[1762559254375,1.07690001,3440.3,3440.2,2.90680774]
[1762559256687,1e-08,3440.3,3440.2,2.90680774]
[1762559256983,1e-08,3440.3,3440.2,3.40030774]
[1762559257169,1e-08,3440.3,3440.2,4.41242424]
[1762559258365,1e-08,3440.3,3440.2,4.38335617]
[1762559259068,1e-08,3440.3,3440.2,3.88985617]
[1762559261785,0.47660001,3440.3,3440.2,3.88985617]
[1762559261989,0.47660001,3440.3,3440.2,2.90680774]
[1762559262302,1.09050001,3440.3,3440.2,2.90680774]
[1762559264899,1.09250001,3440.3,3440.2,2.90680774]
[1762559266596,3.31231174,3440.2,3440.1,0.001]
[1762559266897,3.31231174,3440.2,3439.5,0.001]
[1762559266898,0.405504,3439.8,3439.5,0.001]
[1762559267102,5.03904511,3439.6,3439.5,0.001]
[1762559267277,7.05564885,3439.6,3439.5,0.001]
[1762559267479,6.42887525,3439.6,3439.5,0.001]
[1762559269631,9.74169405,3439.6,3439.5,0.001]
[1762559269816,11.62618974,3439.6,3439.5,0.001]
[1762559274327,11.00140605,3439.6,3439.5,0.001]
[1762559274531,11.62397691,3439.6,3439.5,0.001]
[1762559275894,11.7403617,3439.6,3439.5,0.001]
[1762559276495,11.11779084,3439.6,3439.5,0.001]
[1762559276902,11.73992842,3439.6,3439.5,0.001]
[1762559277327,16.30577353,3439.6,3439.5,0.001]
[1762559277897,11.73992842,3439.6,3439.5,0.001]
[1762559282616,11.33442442,3439.6,3439.5,0.001]
[1762559282820,10.71228684,3439.6,3439.5,0.001]
[1762559283005,11.11779084,3439.6,3439.5,0.001]
[1762559285812,11.7380846,3439.6,3439.5,0.001]
[1762559287504,8.8307698,3439.6,3439.5,0.001]
[1762559288025,11.7380846,3439.6,3439.5,0.001]
[1762559288532,7.62499125,3439.6,3439.5,0.001]
[1762559288938,8.09569125,3439.6,3439.5,0.001]
[1762559290624,6.29875711,3439.6,3439.5,0.001]
[1762559293412,6.92108456,3439.6,3439.5,0.001]
[1762559294045,0.002,3439.8,3439.5,0.4836]
[1762559294236,0.002,3439.8,3439.6,0.4826]
[1762559294550,0.002,3439.8,3439.5,0.001]
[1762559294750,0.405504,3439.7,3439.5,0.001]
[1762559296321,1.1214805,3439.6,3439.5,0.001]
[1762559299959,0.6223805,3439.6,3439.5,0.001]
[1762559302570,1.1214805,3439.6,3439.5,0.001]
[1762559303063,5.5704164,3439.6,3439.5,0.001]
[1762559303468,5.65788866,3439.6,3439.5,0.001]
[1762559303677,5.54151369,3439.6,3439.5,0.001]
[1762559305356,2.16349889,3439.6,3439.5,0.001]
[1762559305553,1.0278845,3439.6,3439.5,0.001]
[1762559305799,0.6223805,3439.6,3439.5,0.4836]
[1762559306090,0.6223805,3439.6,3439.5,3.86909933]
[1762559306285,0.6223805,3439.7,3439.5,3.86906792]
[1762559306490,0.6223805,3439.7,3439.5,3.38646792]
[1762559306691,0.6223805,3439.7,3439.6,0.4826]
[1762559308059,0.002,3439.8,3439.6,0.4826]
[1762559308261,0.6243805,3439.8,3439.7,0.4826]
[1762559308627,0.002,3439.8,3439.7,0.4826]
[1762559308898,0.6243805,3439.8,3439.7,0.4826]
[1762559309062,0.002,3439.8,3439.7,0.4826]
[1762559309467,0.6243805,3439.8,3439.7,0.4826]
[1762559309702,0.002,3439.8,3439.7,0.4826]
[1762559309997,0.6243805,3439.8,3439.7,0.4826]
[1762559310299,0.6243805,3439.8,3439.5,0.001]
[1762559310300,3.3128188,3439.6,3439.5,0.001]
[1762559310483,8.80094712,3439.6,3439.5,0.001]
[1762559310685,9.24274441,3439.6,3439.5,0.001]
[1762559311400,10.50245641,3439.6,3439.5,0.001]
[1762559311704,10.50245641,3439.6,3439.2,0.001]
[1762559311705,3.3130724,3439.3,3439.2,0.001]
[1762559311888,10.28681272,3439.3,3439.2,0.001]
[1762559312060,10.72861001,3439.3,3439.2,0.001]
[1762559312900,2.90765294,3439.2,3439.1,0.001]
[1762559313064,9.1389677,3438.9,3438.8,0.001]
[1762559313266,10.8979482,3438.9,3438.8,0.001]
[1762559313677,11.01435501,3438.9,3438.8,0.001]
[1762559314369,6.4485099,3438.9,3438.8,0.001]
[1762559334834,6.4485099,3438.9,3438.5,0.001]
[1762559334835,10.43657035,3438.6,3438.5,0.001]
[1762559335040,11.35155085,3438.6,3438.5,0.001]
[1762559335198,11.82445085,3438.6,3438.5,0.001]
[1762559336415,10.76439425,3438.6,3438.5,0.001]
[1762559338051,4.71826087,3438.5,3438.4,0.001]
[1762559338349,9.38589307,3438.5,3438.4,0.001]
[1762559338508,9.35699036,3438.5,3438.4,0.001]
[1762559338715,9.35699036,3438.5,3438.1,0.006]
[1762559338716,4.57371463,3438.2,3438.1,0.006]
[1762559338937,10.29373259,3438.2,3438.1,0.006]
[1762559339124,10.76663259,3438.2,3438.1,0.006]
[1762559339326,12.81892794,3438.2,3438.1,0.006]
[1762559340448,14.32962,3438.2,3438.1,0.006]
[1762559341243,13.29102794,3438.2,3438.1,0.006]
[1762559341415,14.3318791,3438.2,3438.1,0.006]
[1762559342158,13.27322794,3438.2,3438.1,0.006]
[1762559342854,14.3140791,3438.2,3438.1,0.006]
[1762559346476,13.27322794,3438.2,3438.1,0.006]
[1762559347930,7.72049048,3438.2,3438.1,0.4715]
[1762559348143,5.66819513,3438.2,3438.1,0.006]
[1762559348370,5.29159384,3438.2,3438.1,0.006]
[1762559348668,5.69709784,3438.2,3438.1,0.006]
[1762559350763,5.69709784,3438.2,3438.1,0.4715]
[1762559350964,5.66819513,3438.2,3438.1,0.4715]
[1762559351364,2.7596965,3438.2,3438.1,0.6473]
[1762559351581,2.7596965,3438.2,3438.1,1.1142]
[1762559352158,7.1003249,3438.2,3438.1,0.006]
[1762559354069,7.5554249,3438.2,3438.1,0.006]
[1762559355387,8.59627606,3438.2,3438.1,0.006]
[1762559357468,8.14117606,3438.2,3438.1,0.006]
[1762559357869,8.59627606,3438.2,3438.1,0.006]
[1762559359085,8.14117606,3438.2,3438.1,0.006]
[1762559359283,7.67097606,3438.2,3438.1,0.006]
[1762559360376,7.1003249,3438.2,3438.1,0.006]
[1762559362108,7.5554249,3438.2,3438.1,0.006]
[1762559362287,9.10442251,3438.2,3438.1,0.006]
[1762559362687,8.64932251,3438.2,3438.1,0.006]
[1762559363204,9.10442251,3438.2,3438.1,0.006]
[1762559363907,7.5554249,3438.2,3438.1,0.006]
[1762559368112,3.31434104,3437.8,3437.7,0.001]
[1762559368331,5.00848208,3437.8,3437.7,0.001]
[1762559368618,5.00848208,3437.8,3437.7,0.4665]
[1762559368817,5.47538208,3437.8,3437.7,0.4665]
[1762559369414,5.44647937,3437.8,3437.7,0.4665]
[1762559370120,5.92428699,3437.8,3437.7,0.4665]
[1762559370484,0.002,3438.8,3437.8,0.4669]
[1762559370788,0.002,3438.8,3438.7,3.37357572]
[1762559371009,0.002,3438.8,3438.7,0.9324]
[1762559373910,0.002,3438.8,3438.7,3.84047572]
[1762559374098,0.002,3438.8,3438.7,4.51534265]
[1762559375021,0.002,3438.8,3438.7,1.60726693]
[1762559375230,0.002,3438.8,3438.7,4.51534265]
[1762559377995,0.002,3438.8,3438.7,1.60726693]
[1762559380043,0.002,3438.8,3438.7,4.51534265]
[1762559382233,0.002,3438.8,3438.7,1.60726693]
[1762559382432,0.002,3438.8,3438.7,0.9324]
[1762559382656,0.002,3438.8,3438.7,0.4655]
[1762559384697,0.002,3438.8,3438.7,3.84057572]
[1762559385558,0.002,3438.8,3438.7,0.4655]
[1762559385790,0.002,3438.8,3438.7,0.4699]
[1762559386192,0.002,3439.1,3438.7,0.4699]
[1762559386193,2.90689224,3440.1,3440.0,79.63246209]
[1762559386400,8.00111893,3440.1,3440.0,79.63246209]
[1762559386608,9.34699221,3440.1,3440.0,79.63246209]
[1762559388202,11.01220821,3440.1,3440.0,79.63246209]
[1762559388362,15.34942515,3440.1,3440.0,79.63246209]
[1762559392187,11.14487933,3440.1,3440.0,79.63246209]
[1762559392380,10.77924795,3440.1,3440.0,79.63246209]
[1762559393086,10.89604795,3440.1,3440.0,79.63246209]
[1762559393902,10.37374395,3440.1,3440.0,79.63246209]
[1762559394112,10.08265472,3440.1,3440.0,79.63246209]
[1762559395708,9.61528544,3440.1,3440.0,79.63246209]
[1762559400600,1.665216,3440.1,3440.0,80.10236209]
[1762559400792,4.16660424,3440.1,3440.0,80.10236209]
[1762559400992,4.57210824,3440.1,3440.0,80.10236209]
[1762559401414,4.68050824,3440.1,3440.0,79.63246209]
[1762559401922,4.57210824,3440.1,3440.0,79.63246209]
[1762559402219,4.57210824,3440.1,3440.0,80.10236209]
[1762559403691,4.57210824,3440.1,3440.0,79.63246209]
[1762559403915,4.57210824,3440.1,3440.0,79.63346209]
[1762559404118,4.68250824,3440.1,3440.0,79.63346209]
[1762559404832,5.16020824,3440.1,3440.0,79.63346209]
[1762559405203,10.6040716,3440.1,3440.0,79.63346209]
[1762559405421,6.5115944,3440.1,3440.0,79.63346209]
[1762559406133,7.38443212,3440.1,3440.0,79.63346209]
[1762559408102,7.38443212,3440.1,3440.0,41.42097749]
[1762559408103,11.95460932,3440.1,3440.0,41.42097749]
[1762559410232,5.44694596,3440.1,3440.0,41.42097749]
[1762559410574,5.44694596,3440.1,3440.0,41.88567749]
[1762559410575,5.04144196,3440.1,3440.0,41.88567749]
[1762559411016,5.44694596,3440.1,3440.0,41.88567749]
[1762559411613,5.55894596,3440.1,3440.0,41.42097749]
[1762559412305,6.03304596,3440.1,3440.0,41.42097749]
[1762559412500,6.91034254,3440.1,3440.0,41.42097749]
[1762559412805,11.95461974,3440.1,3440.0,41.42097749]
[1762559416502,7.38444254,3440.1,3440.0,41.42097749]
[1762559416707,6.79834254,3440.1,3440.0,41.42097749]
[1762559417045,6.79834254,3440.1,3440.0,41.88567749]
[1762559419151,6.91394254,3440.1,3440.0,41.42097749]
[1762559419564,6.79834254,3440.1,3440.0,41.88567749]
[1762559420363,6.79834254,3440.1,3440.0,41.42097749]
[1762559421274,6.79834254,3440.1,3440.0,41.88567749]
[1762559422336,6.91744254,3440.1,3440.0,41.42097749]
[1762559423858,6.79834254,3440.1,3440.0,41.42097749]
[1762559424034,6.79834254,3440.1,3440.0,41.88567749]
[1762559424836,6.79834254,3440.1,3440.0,41.42097749]
[1762559425059,6.79834254,3440.1,3440.0,41.88567749]
[1762559427844,6.79834254,3440.1,3440.0,41.42097749]
[1762559428244,6.91034254,3440.1,3440.0,41.42097749]
[1762559429480,6.79834254,3440.1,3440.0,41.42097749]
[1762559432494,6.79834254,3440.1,3440.0,41.88547749]
[1762559433217,6.79834254,3440.1,3440.0,41.42097749]
[1762559434231,6.79834254,3440.1,3440.0,41.88547749]
[1762559435088,6.91034254,3440.1,3440.0,41.42097749]
[1762559435605,6.79834254,3440.1,3440.0,41.42097749]
[1762559436010,6.79834254,3440.1,3440.0,41.88547749]
[1762559436409,6.79834254,3440.1,3440.0,41.42097749]
[1762559438432,10.49568202,3440.1,3440.0,41.88547749]
[1762559438615,9.14428544,3440.1,3440.0,41.88547749]
[1762559438802,9.14428544,3440.1,3440.0,41.42097749]
[1762559439125,9.24538544,3440.1,3440.0,41.42097749]
[1762559439524,10.11820792,3440.1,3440.0,41.42097749]
[1762559439723,10.60310792,3440.1,3440.0,41.42097749]
[1762559439922,12.24517354,3440.1,3440.0,41.42097749]
[1762559440126,11.76027354,3440.1,3440.0,41.42097749]
[1762559441834,16.79815074,3440.1,3440.0,41.42097749]
[1762559444248,12.22797354,3440.1,3440.0,41.42097749]
[1762559444423,16.79815074,3440.1,3440.0,41.42097749]
[1762559445051,12.22797354,3440.1,3440.0,41.42097749]
[1762559445548,16.79815074,3440.1,3440.0,41.42097749]
[1762559446312,12.22797354,3440.1,3440.0,41.42097749]
[1762559446514,16.79815074,3440.1,3440.0,41.42097749]
[1762559448235,12.22797354,3440.1,3440.0,41.42097749]
[1762559449059,16.79815074,3440.1,3440.0,41.42097749]
[1762559450448,12.4567034,3440.1,3440.0,41.42097749]
[1762559456175,15.5207034,3440.1,3440.0,41.42097749]
[1762559456377,12.4567034,3440.1,3440.0,41.42097749]
[1762559458073,12.4567034,3440.1,3440.0,41.89307749]
[1762559458074,11.8879034,3440.1,3440.0,41.89307749]
[1762559458274,10.24583778,3440.1,3440.0,42.39217749]
[1762559458572,10.24583778,3440.1,3440.0,41.89307749]
[1762559458773,10.36783778,3440.1,3440.0,41.42097749]
[1762559459388,10.24583778,3440.1,3440.0,41.42097749]
[1762559460383,10.24583778,3440.1,3440.0,41.89307749]
[1762559460591,11.89894639,3440.1,3440.0,41.89307749]
[1762559461589,11.89894639,3440.1,3440.0,41.42097749]
[1762559462747,0.87482248,3440.1,3440.0,42.37137749]
[1762559463699,2.13453448,3440.1,3440.0,42.37137749]
[1762559463849,5.44693072,3440.1,3440.0,42.37137749]
[1762559464250,1.28032648,3440.1,3440.0,42.37137749]
[1762559465360,0.87482248,3440.1,3440.0,42.37137749]
[1762559465546,0.87482248,3440.1,3440.0,45.25575713]
[1762559465950,0.87482248,3440.1,3440.0,48.16273387]
[1762559466183,0.87482248,3440.1,3440.0,45.25575713]
[1762559466777,0.87482248,3440.1,3440.0,48.16273387]
[1762559466952,0.002,3440.1,3440.0,48.16273387]
[1762559467292,0.002,3440.2,3440.1,3.38559224]
[1762559467293,0.87060161,3440.2,3440.1,3.38559224]
[1762559467599,0.002,3440.5,3440.4,2.90663876]
[1762559467884,0.002,3440.5,3440.4,3.38533876]
[1762559468091,0.002,3440.5,3440.4,3.85703876]
[1762559470262,0.002,3440.5,3440.4,3.88610514]
[1762559470470,0.002,3440.5,3440.4,4.74711233]
[1762559472624,0.002,3440.7,3440.4,4.74711233]
[1762559472832,2.96844626,3443.4,3440.4,4.74711233]
[1762559472833,0.0807,3442.9,3441.2,0.4787]
[1762559473122,0.0807,3442.9,3440.4,0.89007357]
[1762559473123,0.405504,3440.6,3439.5,0.11632049]
[1762559473414,0.1821,3440.9,3440.0,41.89267749]
[1762559473415,0.405504,3440.4,3440.0,41.89267749]
[1762559473629,0.405504,3440.2,3440.0,41.89267749]
[1762559474128,3.31231174,3440.2,3440.1,0.9504]
[1762559474280,0.405504,3440.3,3440.1,0.9504]
[1762559474476,1.665216,3440.3,3440.2,0.4717]
[1762559474716,1.665216,3440.3,3440.2,0.9504]
[1762559475014,1.259712,3440.3,3440.2,0.9504]
[1762559475212,1.665216,3440.3,3440.2,0.9504]
[1762559475391,0.405504,3440.3,3440.2,0.9504]
[1762559475589,1.665216,3440.3,3440.2,0.9504]
[1762559476206,0.405504,3440.3,3440.2,0.9504]
[1762559476789,1.665216,3440.3,3440.2,0.9504]
[1762559477409,4.57193925,3440.3,3440.2,0.9504]
[1762559477614,3.31222725,3440.3,3440.2,0.9504]
[1762559478013,1.665216,3440.3,3440.2,0.9504]
[1762559479130,3.31222725,3440.3,3440.2,0.9504]
[1762559479594,3.31222725,3440.3,3440.2,0.4787]
[1762559480627,3.31239624,3440.1,3440.0,41.42097749]
[1762559481000,10.0986153,3440.1,3440.0,41.42097749]
[1762559483642,10.97138192,3440.1,3440.0,41.42097749]
[1762559488328,10.52018192,3440.1,3440.0,41.42097749]
[1762559489047,10.97138192,3440.1,3440.0,41.42097749]
[1762559489235,12.43803255,3440.1,3440.0,41.42097749]
[1762559490460,11.98683255,3440.1,3440.0,41.42097749]
[1762559492456,10.52018192,3440.1,3440.0,41.42097749]
[1762559493590,2.53798262,3440.1,3440.0,41.90507749]
[1762559493744,2.53798262,3440.1,3440.0,42.40337749]
[1762559493745,2.13247862,3440.1,3440.0,42.40337749]
[1762559493950,0.87276662,3440.1,3440.0,42.40337749]
[1762559494171,2.90636233,3440.8,3440.1,2.90683932]
[1762559494346,2.13222479,3440.7,3440.5,0.1823]
[1762559494542,0.87251279,3440.7,3440.5,0.1823]
[1762559494746,1.27801679,3440.7,3440.6,0.9824]
[1762559494947,0.87251279,3440.7,3440.6,0.9824]
[1762559495489,1.27801679,3440.7,3440.6,0.9824]
[1762559495779,0.87251279,3440.7,3440.6,0.9824]
[1762559496565,0.87251279,3440.7,3440.6,1.38954059]
[1762559497566,0.87251279,3440.7,3440.6,0.9824]
[1762559499854,3.77889811,3440.7,3440.6,0.9824]
[1762559500356,0.87251279,3440.7,3440.6,0.9824]
[1762559500582,4.18440211,3440.7,3440.6,0.9824]
[1762559500792,1.27801679,3440.7,3440.6,0.4841]
[1762559501487,1.27801679,3440.7,3440.6,0.9539]
[1762559503198,4.18440211,3440.7,3440.6,0.4841]
[1762559504068,3.05128794,3440.6,3440.0,41.89077749]
[1762559504269,0.550304,3440.3,3440.1,0.4698]
[1762559504535,0.405504,3440.3,3440.1,0.4698]
[1762559504729,0.405504,3440.3,3440.2,0.4621]
[1762559505218,1.27811323,3440.3,3440.2,0.9319]
[1762559508721,1.27811323,3440.3,3440.2,0.4621]
[1762559509222,1.27811323,3440.3,3440.2,0.9319]
[1762559510317,5.84570934,3440.3,3440.2,0.9319]
[1762559514284,0.87260923,3440.3,3440.2,0.9319]
[1762559514527,1.259712,3440.8,3440.2,0.9319]
[1762559514528,0.405504,3440.7,3440.3,2.90668712]
[1762559514836,1.27804216,3440.7,3440.3,0.4698]
[1762559515134,1.27804216,3440.7,3440.2,5.79115977]
[1762559515135,1.27804216,3440.7,3440.6,0.4621]
[1762559515292,0.405504,3440.7,3440.6,0.4621]
[1762559515690,1.27804216,3440.7,3440.6,0.4621]
[1762559516113,1.259712,3440.8,3440.6,0.9319]
[1762559516348,1.665216,3440.8,3440.7,0.4621]
[1762559516522,1.665216,3440.8,3440.7,0.9319]
[1762559516725,3.45670356,3440.7,3440.3,0.4698]
[1762559516939,3.31190356,3440.7,3440.4,0.4698]
[1762559517436,3.31190356,3440.7,3440.6,0.4621]
[1762559518107,0.405504,3440.7,3440.6,0.4621]
[1762559518311,3.31188932,3440.7,3440.6,0.4621]
[1762559518744,0.405504,3440.7,3440.6,0.4621]
[1762559518941,0.405504,3440.7,3440.6,0.9319]
[1762559519146,1.259712,3440.8,3440.6,0.9319]
[1762559519345,0.405504,3440.8,3440.7,0.9319]
[1762559520953,0.1448,3440.7,3440.2,2.90676059]
[1762559521134,3.79760486,3440.8,3440.3,2.88437964]
[1762559521450,0.405504,3440.8,3440.7,0.4621]
[1762559523447,0.405504,3440.8,3440.7,0.9507]
[1762559523650,1.261712,3441.3,3440.7,0.9507]
[1762559523818,1.261712,3441.3,3441.1,0.1804]
[1762559524014,1.261712,3441.3,3440.6,0.1804]
[1762559524015,0.1448,3440.7,3440.6,0.1804]
[1762559524352,0.1448,3440.7,3440.6,0.669]
[1762559524516,0.1448,3440.7,3440.6,1.1612]
[1762559524854,0.1448,3440.7,3440.6,4.0676698]
[1762559527353,0.1448,3440.7,3440.6,1.1612]
[1762559527656,0.405504,3440.6,3440.1,0.4896]
[1762559527820,0.405504,3440.3,3440.1,0.001]
[1762559528358,3.31227379,3440.3,3440.1,0.001]
[1762559529128,0.2347,3440.2,3440.1,0.001]
[1762559530344,0.687,3441.4,3440.1,6.95344091]
[1762559530345,0.405504,3440.7,3440.1,6.95344091]
[1762559530665,0.405504,3440.7,3440.6,0.4922]
[1762559531659,1.259712,3441.0,3440.6,0.4922]
[1762559531824,1.259712,3441.1,3440.5,2.90654212]
[1762559532026,5.82730811,3441.1,3441.0,0.4922]
[1762559532332,7.39692792,3441.1,3441.0,0.4922]
[1762559532546,1.810016,3441.0,3440.6,3.39506459]
[1762559532856,1.665216,3441.0,3440.7,0.4886]
[1762559533049,1.665216,3441.0,3440.9,0.4922]
[1762559533838,0.002,3441.3,3440.9,0.4922]
[1762559533839,0.002,3441.3,3440.9,0.9808]
[1762559534049,0.002,3441.3,3441.2,0.4922]
[1762559534603,0.002,3441.3,3441.2,0.9808]
[1762559537266,0.550304,3441.2,3439.8,3.05286761]
[1762559537453,4.56759611,3440.9,3440.5,3.39514076]
[1762559537654,4.56759611,3440.9,3440.5,0.4886]
[1762559537963,4.56759611,3440.9,3440.2,3.39540774]
[1762559537964,0.1448,3440.5,3440.2,3.39540774]
[1762559538267,4.56759611,3440.6,3440.3,5.7910892]
[1762559538478,4.56759611,3440.6,3440.5,0.4922]
[1762559539738,4.56759611,3440.8,3440.5,0.4922]
[1762559540045,4.56759611,3440.8,3440.5,0.4932]
[1762559541155,0.460004,3440.6,3440.5,0.001]
[1762559541782,4.72278725,3440.6,3440.5,0.001]
[1762559542363,3.31231174,3440.2,3440.1,0.001]
[1762559542561,13.88791596,3440.2,3440.1,0.001]
[1762559542788,10.22099921,3440.2,3440.1,0.001]
[1762559543088,9.81551985,3440.2,3440.1,0.001]
[1762559543286,11.0877434,3440.2,3440.1,0.001]
[1762559543649,15.65533951,3440.2,3440.1,0.001]
[1762559544484,12.58038645,3440.2,3440.1,0.001]
[1762559548768,3.31239624,3440.1,3439.8,0.001]
[1762559549086,3.86339624,3440.1,3439.8,0.001]
[1762559549290,5.69030567,3440.1,3440.0,36.11464541]
[1762559549625,6.95001767,3440.1,3440.0,36.11464541]
[1762559549755,4.57244628,3439.7,3439.6,0.001]
[1762559549957,4.57244628,3439.7,3439.4,0.001]
[1762559549958,1.665216,3439.6,3439.4,0.001]
[1762559550269,5.2460308,3439.6,3439.4,0.001]
[1762559550590,5.36244235,3439.6,3439.4,0.001]
[1762559553594,2.90739933,3439.5,3439.4,0.001]
[1762559553798,7.00763502,3439.5,3439.4,0.001]
[1762559557172,6.50843502,3439.5,3439.4,0.001]
[1762559559286,4.63091533,3439.5,3439.4,0.001]
[1762559560508,4.57261533,3439.5,3439.4,0.4992]
[1762559560806,4.80351533,3439.5,3439.4,0.001]
[1762559564019,1.665216,3439.5,3439.4,0.9139]
[1762559566418,4.84251533,3439.5,3439.4,0.001]
[1762559566586,5.61750529,3439.5,3439.4,0.001]
[1762559567024,2.58731105,3441.2,3439.4,0.4544]
[1762559567235,2.5950553,3441.7,3441.6,2.90562529]
[1762559567454,0.005,3442.9,3441.9,0.4534]
[1762559567587,0.005,3442.9,3441.2,0.1892]
[1762559567588,2.9051087,3442.3,3441.2,0.1892]
[1762559567786,6.06023916,3442.2,3441.2,0.1892]
[1762559568021,6.06023916,3442.2,3440.9,0.4595]
[1762559568022,0.0757,3441.3,3440.5,0.1892]
[1762559568537,7.70425923,3441.2,3440.5,0.1892]
[1762559568691,7.70425923,3441.2,3440.0,0.1892]
[1762559568692,2.90630414,3440.8,3440.0,0.1892]
[1762559569032,2.90630414,3440.8,3440.0,0.6487]
[1762559569033,0.405504,3440.5,3440.0,0.6487]
[1762559569399,3.31206737,3440.5,3440.1,0.4595]
[1762559569725,0.405504,3440.5,3440.1,0.4645]
[1762559570139,3.31206007,3440.5,3440.1,0.4645]
[1762559570318,0.405504,3440.3,3440.1,0.4645]
[1762559570631,3.31231174,3440.2,3440.1,0.005]
[1762559570816,4.57202374,3440.2,3440.1,0.005]
[1762559571435,4.91922374,3440.2,3440.1,0.005]
[1762559573208,5.12002374,3440.2,3440.1,0.005]
[1762559573408,5.99319311,3440.2,3440.1,0.005]
[1762559575114,5.99319311,3440.2,3439.4,0.001]
[1762559575115,4.57057233,3439.5,3439.4,0.001]
[1762559575300,5.27757233,3439.5,3439.4,0.001]
[1762559575500,5.62477233,3439.5,3439.4,0.001]
[1762559581043,4.91977233,3439.5,3439.4,0.001]
[1762559581250,6.40647947,3439.5,3439.4,0.001]
[1762559581556,6.5229083,3439.5,3439.4,0.001]
[1762559582042,6.5219083,3439.5,3439.4,0.001]
[1762559583012,5.4717083,3439.5,3439.4,0.001]
[1762559583268,6.05827947,3439.5,3439.4,0.001]
[1762559583602,6.40547947,3439.5,3439.4,0.001]
[1762559585032,9.46947947,3439.5,3439.4,0.001]
[1762559585345,6.40547947,3439.5,3439.4,0.001]
[1762559588962,6.05827947,3439.5,3439.4,0.001]
[1762559589572,5.35527947,3439.5,3439.4,0.001]
[1762559589879,6.05727947,3439.5,3439.4,0.001]
[1762559591851,6.05627947,3439.5,3439.4,0.001]
[1762559592306,6.40347947,3439.5,3439.4,0.001]
[1762559592457,6.40547947,3439.5,3439.4,0.001]
[1762559592792,6.52190932,3439.5,3439.4,0.001]
[1762559593274,4.57295348,3439.1,3439.0,0.001]
[1762559593450,5.27795348,3439.1,3439.0,0.001]
[1762559593766,5.62515348,3439.1,3439.0,0.001]
[1762559593969,5.74159112,3439.1,3439.0,0.001]
[1762559594883,8.80559112,3439.1,3439.0,0.001]
[1762559595085,10.39260359,3439.1,3439.0,0.001]
[1762559595892,10.39260359,3439.1,3438.7,1e-08]
[1762559595893,7.63720715,3438.8,3438.7,1e-08]
[1762559596212,7.98499922,3438.1,3438.0,1e-08]
[1762559596357,14.54280914,3438.1,3438.0,1e-08]
[1762559596691,3.31484881,3437.2,3437.1,1e-08]
[1762559596847,6.26264569,3437.2,3437.1,1e-08]
[1762559597450,9.32664569,3437.2,3437.1,1e-08]
[1762559598313,3.31535676,3436.6,3436.1,0.05252963]
[1762559598452,5.47486876,3436.6,3436.1,0.05252963]
[1762559598650,5.82206876,3436.6,3436.1,0.05252963]
[1762559598950,7.58733216,3436.6,3436.1,0.05252963]
[1762559599968,6.53913216,3436.6,3436.1,0.05252963]
[1762559600298,5.47686876,3436.6,3436.1,0.05252963]
[1762559600598,6.48342801,3436.6,3436.1,0.05252963]
[1762559600796,4.57890749,3436.2,3436.1,1e-08]
[1762559601098,5.27990749,3436.2,3436.1,1e-08]
[1762559601388,5.62710749,3436.2,3436.1,1e-08]
[1762559601597,6.77182139,3436.2,3436.1,1e-08]
[1762559602899,6.8883788,3436.2,3436.1,1e-08]
[1762559603269,6.8883788,3436.2,3435.8,0.001]
[1762559603270,3.31594958,3435.9,3435.8,0.001]
[1762559603590,5.60976158,3435.9,3435.8,0.001]
[1762559603807,5.95696158,3435.9,3435.8,0.001]
[1762559603998,6.91363882,3435.9,3435.8,0.001]
[1762559604955,6.58053882,3435.9,3435.8,0.001]
[1762559607271,2.91044558,3435.9,3435.8,0.9553]
[1762559607471,2.91044558,3435.9,3435.8,0.4568]
[1762559607784,2.91044558,3435.9,3435.8,0.001]
[1762559607785,3.61244558,3435.9,3435.8,0.001]
[1762559607969,5.27766158,3435.9,3435.8,0.001]
[1762559608773,5.27766158,3435.9,3435.8,0.4568]
[1762559608979,4.87215758,3435.9,3435.8,0.9553]
[1762559609172,5.27766158,3435.9,3435.8,0.9553]
[1762559609500,6.1463124,3435.9,3435.8,0.001]
[1762559611072,6.1463124,3435.9,3435.8,0.4568]
[1762559611279,5.27766158,3435.9,3435.8,0.9553]
[1762559611474,4.57566158,3435.9,3435.8,0.9553]
[1762559611866,5.27666158,3435.9,3435.8,0.9553]
[1762559612079,4.57566158,3435.9,3435.8,0.9553]
[1762559612280,5.27666158,3435.9,3435.8,0.9553]
[1762559612668,4.57566158,3435.9,3435.8,0.9553]
[1762559612869,5.27666158,3435.9,3435.8,0.9553]
[1762559614403,4.57566158,3435.9,3435.8,0.9553]
[1762559616506,5.39446456,3435.9,3435.8,0.4568]
[1762559617407,5.39446456,3435.9,3435.8,0.001]
[1762559617919,5.59526456,3435.9,3435.8,0.001]
[1762559618076,5.73096456,3435.9,3435.8,0.001]
[1762559621996,6.20926456,3435.9,3435.8,0.001]
[1762559624109,5.87276456,3435.9,3435.8,0.465]
[1762559624415,5.87276456,3435.9,3435.8,0.9403]
[1762559624416,4.17015758,3435.9,3435.8,0.9403]
[1762559625133,4.57566158,3435.9,3435.8,0.9403]
[1762559625442,4.17015758,3435.9,3435.8,0.9403]